fUST/lending_fUST_20240902
["ID","MTS","AMOUNT","RATE_DAILY","PERIOD"]
[336925421,1725244247578,-837.03,0.00024931,2]
[336925422,1725244247587,-500.0,0.00024931,2]
[336925423,1725244247597,-500.0,0.00024931,2]
[336925424,1725244247606,-500.0,0.00024931,2]
[336925425,1725244247616,-674.02,0.00024931,2]
[336925426,1725244247625,-500.0,0.00024931,2]
[336925427,1725244247634,-500.0,0.00024931,2]
[336925428,1725244247643,-500.0,0.00024931,2]
[336925429,1725244247653,-671.54,0.00024931,2]
[336925430,1725244247662,-520.61,0.00024931,2]
[336925431,1725244247672,-500.0,0.00024931,2]
[336925432,1725244247682,-634.79,0.00024931,2]
[336925433,1725244247691,-500.0,0.00024931,2]
[336925434,1725244247701,-557.69,0.00024931,2]
[336925435,1725244247711,-500.0,0.00024931,2]
[336925436,1725244247721,-699.39,0.00024931,2]
[336925437,1725244247731,-500.0,0.00024931,2]
[336925438,1725244247740,-500.0,0.00024931,2]
[336925439,1725244247750,-500.0,0.00024931,2]
[336925440,1725244247762,-3329.95,0.00024931,2]
[336925441,1725244247771,-500.0,0.00024931,2]
[336925442,1725244247781,-500.0,0.00024931,2]
[336925443,1725244247790,-500.0,0.00024931,2]
[336925444,1725244247800,-550.13,0.00024931,2]
[336925445,1725244247810,-500.0,0.00024931,2]
[336925446,1725244247819,-1131.15,0.00024931,2]
[336925447,1725244247828,-500.0,0.00024931,2]
[336925448,1725244247838,-500.0,0.00024931,2]
[336925449,1725244247848,-513.48,0.00024931,2]
[336925450,1725244247857,-500.0,0.00024931,2]
[336925451,1725244247868,-500.0,0.00024931,2]
[336925452,1725244247878,-500.0,0.00024931,2]
[336925453,1725244247887,-500.0,0.00024931,2]
[336925454,1725244247897,-439.35630765,0.00024931,2]
[336925455,1725244247906,-500.0,0.00024931,2]
[336925456,1725244247915,-500.0,0.00024931,2]
[336925457,1725244247924,-626.48,0.00024931,2]
[336925458,1725244247933,-500.0,0.00024931,2]
[336925459,1725244247943,-500.0,0.00024931,2]
[336925460,1725244247952,-880.22,0.00024931,2]
[336925461,1725244247961,-500.0,0.00024931,2]
[336925462,1725244247970,-500.0,0.00024931,2]
[336925463,1725244247979,-500.0,0.00024931,2]
[336925464,1725244247988,-500.0,0.00024931,2]
[336925465,1725244247997,-500.0,0.00024931,2]
[336925466,1725244248007,-500.0,0.00024931,2]
[336925467,1725244248016,-500.0,0.00024931,2]
[336925468,1725244248026,-500.0,0.00024931,2]
[336925469,1725244248035,-842.85,0.00024931,2]
[336925470,1725244248044,-660.85,0.00024931,2]
[336925471,1725244248054,-430.56748116,0.00024931,2]
[336925472,1725244248064,-500.0,0.00024931,2]
[336925473,1725244248073,-505.60656397,0.00024931,2]
[336925474,1725244248082,-500.0,0.00024931,2]
[336925475,1725244248092,-500.0,0.00024931,2]
[336925476,1725244248101,-500.0,0.00024931,2]
[336925477,1725244248110,-500.0,0.00024931,2]
[336925478,1725244248119,-509.28993497,0.00024931,2]
[336925479,1725244248128,-500.0,0.00024931,2]
[336925480,1725244248138,-952.82,0.00024931,2]
[336925481,1725244248147,-500.0,0.00024931,2]
[336925482,1725244248156,-500.0,0.00024931,2]
[336925483,1725244248165,-500.0,0.00024931,2]
[336925484,1725244248174,-500.0,0.00024931,2]
[336925485,1725244248183,-926.65,0.00024931,2]
[336925486,1725244248193,-500.0,0.00024931,2]
[336925487,1725244248202,-515.25116768,0.00024931,2]
[336925488,1725244248212,-508.24120198,0.00024931,2]
[336925489,1725244248221,-891.28,0.00024931,2]
[336925490,1725244248231,-732.92,0.00024931,2]
[336925491,1725244248241,-500.0,0.00024931,2]
[336925492,1725244248251,-500.0,0.00024931,2]
[336925493,1725244248262,-500.0,0.00024931,2]
[336925494,1725244248271,-502.93525691,0.00024931,2]
[336925495,1725244248280,-500.0,0.00024931,2]
[336925496,1725244248289,-500.0,0.00024931,2]
[336925497,1725244248298,-500.0,0.00024931,2]
[336925498,1725244248307,-500.0,0.00024931,2]
[336925499,1725244248316,-1265.8,0.00024931,2]
[336925500,1725244248325,-500.0,0.00024931,2]
[336925501,1725244248334,-1169.73,0.00024931,2]
[336925502,1725244248343,-500.0,0.00024931,2]
[336925503,1725244248352,-500.0,0.00024931,2]
[336925504,1725244248362,-1792.34,0.00024931,2]
[336925505,1725244248371,-500.0,0.00024931,2]
[336925506,1725244248380,-1795.86,0.00024931,2]
[336925507,1725244248390,-500.0,0.00024931,2]
[336925508,1725244248399,-500.0,0.00024931,2]
[336925509,1725244248408,-500.0,0.00024931,2]
[336925510,1725244248417,-500.0,0.00024931,2]
[336925511,1725244248426,-500.0,0.00024931,2]
[336925512,1725244248435,-500.0,0.00024931,2]
[336925513,1725244248444,-2277.02,0.00024931,2]
[336925514,1725244248454,-500.0,0.00024931,2]
[336925515,1725244248463,-500.0,0.00024931,2]
[336925516,1725244248473,-500.0,0.00024931,2]
[336925517,1725244248482,-508.0090939,0.00024931,2]
[336925518,1725244248494,-500.0,0.00024931,2]
[336925519,1725244248504,-500.0,0.00024931,2]
[336925520,1725244248514,-1356.19,0.00024931,2]
[336925521,1725244248523,-12312.44,0.00024931,2]
[336925522,1725244248532,-840.25,0.00024931,2]
[336925523,1725244248542,-2656.64,0.00024931,2]
[336925524,1725244248551,-1908.92,0.00024931,2]
[336925525,1725244248561,-500.0,0.00024931,2]
[336925526,1725244248570,-718.57,0.00024931,2]
[336925527,1725244248580,-568.35,0.00024931,2]
[336925528,1725244248590,-1873.9,0.00024931,2]
[336925529,1725244248599,-502.95579537,0.00024931,2]
[336925530,1725244248608,-500.0,0.00024931,2]
[336925531,1725244248618,-500.0,0.00024931,2]
[336925532,1725244248628,-500.0,0.00024931,2]
[336925533,1725244248638,-516.77,0.00024931,2]
[336925534,1725244248647,-500.0,0.00024931,2]
[336925535,1725244248657,-781.86,0.00024931,2]
[336925536,1725244248667,-500.0,0.00024931,2]
[336925537,1725244248676,-2353.96,0.00024931,2]
[336925538,1725244248686,-2544.03,0.00024931,2]
[336925539,1725244248696,-500.0,0.00024931,2]
[336925540,1725244248706,-500.0,0.00024931,2]
[336925541,1725244248716,-500.0,0.00024931,2]
[336925542,1725244248725,-500.0,0.00024931,2]
[336925543,1725244248734,-584.55,0.00024931,2]
[336925544,1725244248744,-500.0,0.00024931,2]
[336925545,1725244248753,-500.0,0.00024931,2]
[336925546,1725244248763,-530.75,0.00024931,2]
[336925547,1725244248772,-542.54800923,0.00024931,2]
[336925548,1725244248782,-1003.77,0.00024931,2]
[336925549,1725244248792,-500.0,0.00024931,2]
[336925550,1725244248802,-536.3871627,0.00024931,2]
[336925551,1725244248811,-500.0,0.00024931,2]
[336925552,1725244248821,-500.0,0.00024931,2]
[336925553,1725244248830,-500.0,0.00024931,2]
[336925554,1725244248840,-500.0,0.00024931,2]
[336925555,1725244248851,-500.0,0.00024931,2]
[336925556,1725244248861,-500.0,0.00024931,2]
[336925557,1725244248871,-1362.28,0.00024931,2]
[336925558,1725244248880,-500.0,0.00024931,2]
[336925559,1725244248890,-1079.24,0.00024931,2]
[336925560,1725244248899,-1444.21,0.00024931,2]
[336925561,1725244248908,-500.0,0.00024931,2]
[336925562,1725244248918,-1337.77,0.00024931,2]
[336925563,1725244248927,-500.0,0.00024931,2]
[336925564,1725244248936,-1483.34,0.00024931,2]
[336925565,1725244248946,-575.48,0.00024931,2]
[336925566,1725244248955,-500.0,0.00024931,2]
[336925567,1725244248964,-500.0,0.00024931,2]
[336925568,1725244248973,-1890.91,0.00024931,2]
[336925569,1725244249093,-4444.47,0.00024931,2]
[336925570,1725244249102,-1535.45,0.00024931,2]
[336925571,1725244249112,-1845.12,0.00024931,2]
[336925572,1725244249122,-2261.1,0.00024931,2]
[336925573,1725244249131,-619.59,0.00024931,2]
[336925574,1725244249141,-500.0,0.00024931,2]
[336925575,1725244249150,-1434.23,0.00024931,2]
[336925576,1725244249159,-500.0,0.00024931,2]
[336925577,1725244249168,-1255.7,0.00024931,2]
[336925578,1725244249177,-500.0,0.00024931,2]
[336925579,1725244249186,-500.0,0.00024931,2]
[336925580,1725244249196,-1004.6,0.00024931,2]
[336925581,1725244249205,-983.95,0.00024931,2]
[336925582,1725244249214,-578.71,0.00024931,2]
[336925583,1725244249223,-1246.24,0.00024931,2]
[336925584,1725244249232,-1327.41,0.00024931,2]
[336925585,1725244249241,-878.27,0.00024931,2]
[336925586,1725244249250,-500.0,0.00024931,2]
[336925587,1725244249261,-500.0,0.00024931,2]
[336925588,1725244249270,-919.9,0.00024931,2]
[336925589,1725244249279,-1189.91,0.00024931,2]
[336925590,1725244249289,-500.0,0.00024931,2]
[336925591,1725244249298,-584.36,0.00024931,2]
[336925592,1725244249308,-500.0,0.00024931,2]
[336925593,1725244249317,-500.0,0.00024931,2]
[336925594,1725244249327,-1473.81,0.00024931,2]
[336925595,1725244249336,-500.0,0.00024931,2]
[336925596,1725244249345,-771.66,0.00024931,2]
[336925597,1725244249354,-523.46,0.00024931,2]
[336925598,1725244249363,-532.51,0.00024931,2]
[336925599,1725244249372,-854.3,0.00024931,2]
[336925600,1725244249381,-522.04,0.00024931,2]
[336925601,1725244249390,-500.0,0.00024931,2]
[336925602,1725244249400,-7078.87,0.00024931,2]
[336925603,1725244249409,-828.09,0.00024931,2]
[336925604,1725244249418,-565.15,0.00024931,2]
[336925605,1725244249428,-369.54532474,0.00024931,2]
[336925606,1725244249436,-500.0,0.00024931,2]
[336925607,1725244249446,-500.0,0.00024931,2]
[336925608,1725244249457,-500.0,0.00024931,2]
[336925609,1725244249466,-1368.86,0.00024931,2]
[336925610,1725244249475,-1446.34,0.00024931,2]
[336925611,1725244249485,-500.0,0.00024931,2]
[336925612,1725244249497,-500.0,0.00024931,2]
[336925613,1725244249507,-1217.74,0.00024931,2]
[336925614,1725244249517,-500.0,0.00024931,2]
[336925615,1725244249527,-504.28990011,0.00024931,2]
[336925616,1725244249537,-500.0,0.00024931,2]
[336925617,1725244249546,-1577.1,0.00024931,2]
[336925618,1725244249555,-505.22330456,0.00024931,2]
[336925619,1725244249565,-686.55,0.00024931,2]
[336925620,1725244249574,-689.03,0.00024931,2]
[336925621,1725244249584,-500.0,0.00024931,2]
[336925622,1725244249594,-501.4467891,0.00024931,2]
[336925623,1725244249603,-500.0,0.00024931,2]
[336925624,1725244249612,-500.0,0.00024931,2]
[336925625,1725244249623,-1195.91,0.00024931,2]
[336925626,1725244249633,-500.0,0.00024931,2]
[336925627,1725244249644,-500.0,0.00024931,2]
[336925628,1725244249654,-3222.21,0.00024931,2]
[336925629,1725244249664,-500.0,0.00024931,2]
[336925630,1725244249673,-500.0,0.00024931,2]
[336925631,1725244249684,-1060.84,0.00024931,2]
[336925632,1725244249694,-1192.01,0.00024931,2]
[336925633,1725244249705,-2658.99,0.00024931,2]
[336925634,1725244249716,-500.0,0.00024931,2]
[336925635,1725244249726,-500.0,0.00024931,2]
[336925636,1725244249736,-500.0,0.00024931,2]
[336925637,1725244249745,-500.0,0.00024931,2]
[336925638,1725244249756,-1057.63,0.00024931,2]
[336925639,1725244249766,-1126.56,0.00024931,2]
[336925640,1725244249776,-500.0,0.00024931,2]
[336925641,1725244249786,-1146.75,0.00024931,2]
[336925642,1725244249795,-1788.13,0.00024931,2]
[336925643,1725244249804,-9068.51,0.00024931,2]
[336925644,1725244249813,-501.32327176,0.00024931,2]
[336925645,1725244249823,-1162.01,0.00024931,2]
[336925646,1725244249832,-500.0,0.00024931,2]
[336925647,1725244249842,-500.0,0.00024931,2]
[336925648,1725244249851,-500.0,0.00024931,2]
[336925649,1725244249861,-500.0,0.00024931,2]
[336925650,1725244249871,-500.0,0.00024931,2]
[336925651,1725244249881,-500.0,0.00024931,2]
[336925652,1725244249890,-500.0,0.00024931,2]
[336925653,1725244249900,-500.0,0.00024931,2]
[336925654,1725244249909,-500.0,0.00024931,2]
[336925655,1725244249919,-500.0,0.00024931,2]
[336925656,1725244249930,-500.0,0.00024931,2]
[336925657,1725244249939,-159.0,0.00024932,2]
[336925658,1725244249949,-500.0,0.00024973,2]
[336925659,1725244249958,-160.823479,0.00024987,2]
[336925660,1725244249967,-159.0,0.00025,2]
[336925661,1725244249976,-25295.41663901,0.00025,2]
[336925662,1725244249985,-179.2117909,0.00025105,2]
[336925663,1725244249994,-156.78744,0.000252,8]
[336925664,1725244250003,-150.0,0.000252,2]
[336925665,1725244250012,-500.0,0.00025203,2]
[336925666,1725244250022,-586.23,0.00025203,2]
[336925667,1725244250032,-586.23,0.00025203,2]
[336925668,1725244250041,-500.0,0.00025203,2]
[336925669,1725244250050,-500.0,0.00025204,2]
[336925670,1725244250059,-500.0,0.00025204,2]
[336925671,1725244250069,-586.23,0.00025204,2]
[336925672,1725244250078,-586.23,0.00025204,2]
[336925673,1725244250088,-586.23,0.00025204,2]
[336925674,1725244250097,-586.23,0.00025204,2]
[336925675,1725244250107,-586.23,0.00025204,2]
[336925676,1725244250117,-586.41776741,0.00025204,2]
[336925677,1725244250127,-500.0,0.00025204,2]
[336925678,1725244250137,-500.0,0.00025205,2]
[336925679,1725244250147,-561.37,0.00025205,2]
[336925680,1725244250157,-500.0,0.00025205,2]
[336925681,1725244250166,-500.0,0.00025205,2]
[336925682,1725244250175,-500.0,0.00025205,2]
[336925683,1725244250184,-500.0,0.00025205,2]
[336925684,1725244250194,-500.0,0.00025205,2]
[336925685,1725244250203,-500.0,0.00025205,2]
[336925686,1725244250214,-500.0,0.00025205,2]
[336925687,1725244250227,-500.0,0.00025205,2]
[336925688,1725244250237,-533.07142725,0.00025205,2]
[336925689,1725244250247,-500.0,0.00025205,2]
[336925690,1725244250259,-500.0,0.00025205,2]
[336925691,1725244250276,-500.0,0.00025205,2]
[336925692,1725244250285,-500.0,0.00025205,2]
[336925693,1725244250294,-500.0,0.00025205,2]
[336925694,1725244250303,-500.0,0.00025205,2]
[336925695,1725244250313,-500.0,0.00025205,2]
[336925696,1725244250323,-500.0,0.00025205,2]
[336925697,1725244250333,-500.0,0.00025205,2]
[336925698,1725244250342,-500.0,0.00025205,2]
[336925699,1725244250351,-500.0,0.00025205,2]
[336925700,1725244250361,-500.0,0.00025205,2]
[336925701,1725244250370,-500.0,0.00025205,2]
[336925702,1725244250380,-500.0,0.00025205,2]
[336925703,1725244250390,-500.0,0.00025205,2]
[336925704,1725244250399,-500.0,0.00025205,2]
[336925705,1725244250408,-500.0,0.00025205,2]
[336925706,1725244250417,-500.0,0.00025205,2]
[336925707,1725244250426,-500.0,0.00025205,2]
[336925708,1725244250435,-500.0,0.00025205,2]
[336925709,1725244250445,-500.0,0.00025205,2]
[336925710,1725244250454,-561.50226896,0.00025205,2]
[336925711,1725244250463,-500.0,0.00025205,2]
[336925712,1725244250472,-500.0,0.00025205,2]
[336925713,1725244250481,-500.0,0.00025205,2]
[336925714,1725244250493,-500.0,0.00025205,2]
[336925715,1725244250502,-500.0,0.00025205,2]
[336925716,1725244250511,-501.30631589,0.00025205,2]
[336925717,1725244250521,-500.0,0.00025205,2]
[336925718,1725244250530,-500.0,0.00025205,2]
[336925719,1725244250540,-638.44,0.00025205,2]
[336925720,1725244250550,-500.0,0.00025205,2]
[336925721,1725244250559,-500.0,0.00025205,2]
[336925722,1725244250568,-664.15,0.00025205,2]
[336925723,1725244250578,-500.0,0.00025205,2]
[336925724,1725244250587,-500.0,0.00025205,2]
[336925725,1725244250596,-500.0,0.00025205,2]
[336925726,1725244250605,-500.0,0.00025205,2]
[336925727,1725244250615,-500.0,0.00025205,2]
[336925728,1725244250624,-641.32922599,0.00025205,2]
[336925729,1725244250633,-500.0,0.00025205,2]
[336925730,1725244250642,-505.74595886,0.00025205,2]
[336925731,1725244250651,-500.0,0.00025205,2]
[336925732,1725244250661,-500.0,0.00025205,2]
[336925733,1725244250670,-500.0,0.00025205,2]
[336925734,1725244250680,-505.10251526,0.00025205,2]
[336925735,1725244250690,-500.0,0.00025205,2]
[336925736,1725244250699,-561.25,0.00025205,2]
[336925737,1725244250709,-500.0,0.00025205,2]
[336925738,1725244250719,-500.0,0.00025205,2]
[336925739,1725244250728,-500.0,0.00025205,2]
[336925740,1725244250738,-200.0,0.00025205,2]
[336925741,1725244250747,-500.0,0.00025205,2]
[336925742,1725244250760,-500.0,0.00025205,2]
[336925743,1725244250770,-500.0,0.00025205,2]
[336925744,1725244250779,-500.0,0.00025205,2]
[336925745,1725244250789,-504.67124278,0.00025205,2]
[336925746,1725244250798,-500.0,0.00025205,2]
[336925747,1725244250808,-500.0,0.00025205,2]
[336925748,1725244250817,-500.0,0.00025205,2]
[336925749,1725244250826,-505.79624477,0.00025205,2]
[336925750,1725244250835,-500.0,0.00025205,2]
[336925751,1725244250844,-500.0,0.00025205,2]
[336925752,1725244250854,-500.0,0.00025205,2]
[336925753,1725244250863,-500.0,0.00025205,2]
[336925754,1725244250873,-1199.58,0.00025205,2]
[336925755,1725244250883,-500.0,0.00025205,2]
[336925756,1725244250892,-500.0,0.00025205,2]
[336925757,1725244250901,-500.0,0.00025205,2]
[336925758,1725244250911,-504.93816067,0.00025205,2]
[336925759,1725244250920,-500.0,0.00025205,2]
[336925760,1725244250929,-500.0,0.00025205,2]
[336925761,1725244250938,-500.0,0.00025205,2]
[336925762,1725244250948,-500.0,0.00025205,2]
[336925763,1725244250958,-500.0,0.00025205,2]
[336925764,1725244250967,-500.0,0.00025205,2]
[336925765,1725244250976,-500.0,0.00025205,2]
[336925766,1725244250985,-500.0,0.00025205,2]
[336925767,1725244250994,-983.39,0.00025205,2]
[336925768,1725244251003,-500.0,0.00025205,2]
[336925769,1725244251013,-500.0,0.00025205,2]
[336925770,1725244251022,-500.0,0.00025205,2]
[336925771,1725244251031,-500.0,0.00025205,2]
[336925772,1725244251040,-500.0,0.00025205,2]
[336925773,1725244251049,-500.0,0.00025205,2]
[336925774,1725244251058,-707.21,0.00025205,2]
[336925775,1725244251067,-711.51,0.00025205,2]
[336925776,1725244251076,-591.72,0.00025205,2]
[336925777,1725244251086,-500.0,0.00025205,2]
[336925778,1725244251096,-509.95,0.00025205,2]
[336925779,1725244251105,-500.0,0.00025205,2]
[336925780,1725244251114,-500.0,0.00025205,2]
[336925781,1725244251123,-249.5624225,0.00025205,2]
[336925782,1725244251133,-500.0,0.00025205,2]
[336925783,1725244251143,-500.0,0.00025205,2]
[336925784,1725244251153,-502.8123865,0.00025205,2]
[336925785,1725244251162,-837.03,0.00025205,2]
[336925786,1725244251171,-500.0,0.00025205,2]
[336925787,1725244251181,-500.0,0.00025205,2]
[336925788,1725244251191,-674.02,0.00025205,2]
[336925789,1725244251200,-500.0,0.00025205,2]
[336925790,1725244251210,-671.54,0.00025205,2]
[336925791,1725244251221,-520.61,0.00025205,2]
[336925792,1725244251232,-337.88855092,0.00025205,2]
[336925793,1725244251242,-634.79,0.00025205,2]
[336925794,1725244251251,-557.69,0.00025205,2]
[336925795,1725244251264,-500.0,0.00025205,2]
[336925796,1725244251273,-699.39,0.00025205,2]
[336925797,1725244251282,-500.0,0.00025205,2]
[336925798,1725244251292,-500.0,0.00025205,2]
[336925799,1725244251301,-500.0,0.00025205,2]
[336925800,1725244251310,-3329.95,0.00025205,2]
[336925801,1725244251320,-500.0,0.00025205,2]
[336925802,1725244251330,-507.61811917,0.00025205,2]
[336925803,1725244251339,-500.0,0.00025205,2]
[336925804,1725244251349,-550.13,0.00025205,2]
[336925805,1725244251360,-500.0,0.00025205,2]
[336925806,1725244251369,-1131.15,0.00025205,2]
[336925807,1725244251379,-500.0,0.00025205,2]
[336925808,1725244251493,-500.0,0.00025205,2]
[336925809,1725244251507,-513.48,0.00025205,2]
[336925810,1725244251517,-500.0,0.00025205,2]
[336925811,1725244251526,-500.0,0.00025205,2]
[336925812,1725244251538,-510.73128895,0.00025205,2]
[336925813,1725244251548,-500.0,0.00025205,2]
[336925814,1725244251558,-500.0,0.00025205,2]
[336925815,1725244251567,-626.48,0.00025205,2]
[336925816,1725244251578,-880.22,0.00025205,2]
[336925817,1725244251587,-500.0,0.00025205,2]
[336925818,1725244251597,-500.0,0.00025205,2]
[336925819,1725244251606,-500.0,0.00025205,2]
[336925820,1725244251615,-500.0,0.00025205,2]
[336925821,1725244251625,-500.0,0.00025205,2]
[336925822,1725244251634,-500.0,0.00025205,2]
[336925823,1725244251644,-842.85,0.00025205,2]
[336925824,1725244251653,-660.85,0.00025205,2]
[336925825,1725244251664,-500.0,0.00025205,2]
[336925826,1725244251674,-500.0,0.00025205,2]
[336925827,1725244251683,-500.0,0.00025205,2]
[336925828,1725244251692,-500.0,0.00025205,2]
[336925829,1725244251702,-500.0,0.00025205,2]
[336925830,1725244251711,-952.82,0.00025205,2]
[336925831,1725244251721,-504.9954499,0.00025205,2]
[336925832,1725244251730,-500.0,0.00025205,2]
[336925833,1725244251742,-500.0,0.00025205,2]
[336925834,1725244251751,-926.65,0.00025205,2]
[336925835,1725244251762,-500.0,0.00025205,2]
[336925836,1725244251771,-891.28,0.00025205,2]
[336925837,1725244251780,-732.92,0.00025205,2]
[336925838,1725244251790,-500.0,0.00025205,2]
[336925839,1725244251799,-500.0,0.00025205,2]
[336925840,1725244251809,-500.0,0.00025205,2]
[336925841,1725244251819,-505.07028392,0.00025205,2]
[336925842,1725244251828,-500.0,0.00025205,2]
[336925843,1725244251837,-500.0,0.00025205,2]
[336925844,1725244251847,-1265.8,0.00025205,2]
[336925845,1725244251856,-500.0,0.00025205,2]
[336925846,1725244251865,-1169.73,0.00025205,2]
[336925847,1725244251874,-500.0,0.00025205,2]
[336925848,1725244251884,-500.0,0.00025205,2]
[336925849,1725244251894,-1792.34,0.00025205,2]
[336925850,1725244251904,-500.0,0.00025205,2]
[336925851,1725244251914,-1795.86,0.00025205,2]
[336925852,1725244251923,-500.0,0.00025205,2]
[336925853,1725244251932,-500.0,0.00025205,2]
[336925854,1725244251941,-500.0,0.00025205,2]
[336925855,1725244251953,-500.0,0.00025205,2]
[336925856,1725244251963,-500.0,0.00025205,2]
[336925857,1725244251972,-500.0,0.00025205,2]
[336925858,1725244251982,-2277.02,0.00025205,2]
[336925859,1725244251991,-500.0,0.00025205,2]
[336925860,1725244252000,-500.0,0.00025205,2]
[336925861,1725244252011,-500.0,0.00025205,2]
[336925862,1725244252020,-500.0,0.00025205,2]
[336925863,1725244252030,-500.0,0.00025205,2]
[336925864,1725244252040,-1356.19,0.00025205,2]
[336925865,1725244252049,-12312.44,0.00025205,2]
[336925866,1725244252060,-840.25,0.00025205,2]
[336925867,1725244252069,-2656.64,0.00025205,2]
[336925868,1725244252078,-1908.92,0.00025205,2]
[336925869,1725244252087,-500.0,0.00025205,2]
[336925870,1725244252098,-718.57,0.00025205,2]
[336925871,1725244252109,-568.35,0.00025205,2]
[336925872,1725244252120,-1873.9,0.00025205,2]
[336925873,1725244252130,-500.0,0.00025205,2]
[336925874,1725244252141,-500.0,0.00025205,2]
[336925875,1725244252152,-500.0,0.00025205,2]
[336925876,1725244252162,-516.77,0.00025205,2]
[336925877,1725244252172,-500.0,0.00025205,2]
[336925878,1725244252182,-781.86,0.00025205,2]
[336925879,1725244252191,-383.56486565,0.00025205,2]
[336925880,1725244252201,-2353.96,0.00025205,2]
[336925881,1725244252211,-2544.03,0.00025205,2]
[336925882,1725244252220,-584.55,0.00025205,2]
[336925883,1725244252230,-500.0,0.00025205,2]
[336925884,1725244252240,-530.75,0.00025205,2]
[336925885,1725244252250,-1003.77,0.00025205,2]
[336925886,1725244252260,-500.0,0.00025205,2]
[336925887,1725244252269,-500.0,0.00025205,2]
[336925888,1725244252279,-500.0,0.00025205,2]
[336925889,1725244252288,-1362.28,0.00025205,2]
[336925890,1725244252298,-500.0,0.00025205,2]
[336925891,1725244252308,-1079.24,0.00025205,2]
[336925892,1725244252319,-1444.21,0.00025205,2]
[336925893,1725244252331,-500.0,0.00025205,2]
[336925894,1725244252342,-1337.77,0.00025205,2]
[336925895,1725244252352,-500.0,0.00025205,2]
[336925896,1725244252361,-575.48,0.00025205,2]
[336925897,1725244252370,-1483.34,0.00025205,2]
[336925898,1725244252380,-500.0,0.00025205,2]
[336925899,1725244252390,-500.0,0.00025205,2]
[336925900,1725244252399,-1890.91,0.00025205,2]
[336925901,1725244252408,-4444.47,0.00025205,2]
[336925902,1725244252417,-1535.45,0.00025205,2]
[336925903,1725244252427,-1845.12,0.00025205,2]
[336925904,1725244252436,-2261.1,0.00025205,2]
[336925905,1725244252446,-619.59,0.00025205,2]
[336925906,1725244252455,-500.0,0.00025205,2]
[336925907,1725244252465,-1434.23,0.00025205,2]
[336925908,1725244252474,-1255.7,0.00025205,2]
[336925909,1725244252483,-496.03349054,0.00025205,2]
[336925910,1725244252496,-500.0,0.00025205,2]
[336925911,1725244252506,-1004.6,0.00025205,2]
[336925912,1725244252515,-983.95,0.00025205,2]
[336925913,1725244252525,-578.71,0.00025205,2]
[336925914,1725244252534,-1246.24,0.00025205,2]
[336925915,1725244252543,-1327.41,0.00025205,2]
[336925916,1725244252553,-878.27,0.00025205,2]
[336925917,1725244252562,-500.0,0.00025205,2]
[336925918,1725244252574,-919.9,0.00025205,2]
[336925919,1725244252584,-1189.91,0.00025205,2]
[336925920,1725244252594,-608.5228033,0.00025205,2]